bitfinex/quotes_ETHUSD_20251010
["timestamp","ask_amount","ask_price","bid_price","bid_amount"]
[1760085865439,0.0012,4334.6,4334.5,7.56139588]
[1760085867019,0.0012,4334.6,4334.5,7.65383494]
[1760085867221,0.0012,4334.6,4334.5,8.67314988]
[1760085867562,0.0012,4334.6,4334.5,10.59314988]
[1760085867709,0.002,4335.5,4335.4,2.30659224]
[1760085868021,0.002,4335.5,4335.4,7.21410583]
[1760085868221,0.002,4335.5,4335.4,10.62499475]
[1760085869415,0.002,4335.5,4335.4,5.73167004]
[1760085870645,0.002,4335.5,4335.4,5.82408155]
[1760085873342,0.00404206,4335.5,4335.4,5.82408155]
[1760085873554,0.00608412,4335.5,4335.4,5.82408155]
[1760085874759,0.002,4335.5,4335.4,5.82408155]
[1760085875125,0.002,4335.5,4335.4,5.46308155]
[1760085875329,0.002,4335.5,4335.4,5.57828155]
[1760085876257,0.002,4335.5,4335.4,2.39900375]
[1760085876826,0.002,4335.5,4335.4,2.41319263]
[1760085879146,0.002,4335.5,4335.4,0.09241151]
[1760085879653,0.0012,4335.5,4335.4,2.39900375]
[1760085882479,0.0012,4335.5,4335.4,2.41319263]
[1760085882645,0.0012,4335.5,4335.4,2.89669975]
[1760085883266,0.0012,4335.5,4335.4,2.41319263]
[1760085884681,0.0012,4335.5,4335.4,2.39900375]
[1760085886184,0.0012,4335.5,4335.4,0.09241151]
[1760085886185,0.4397,4335.5,4335.4,0.09241151]
[1760085886386,0.4397,4335.5,4335.1,2.30674181]
[1760085886584,0.4397,4335.5,4335.3,0.1252]
[1760085886881,0.0012,4335.5,4335.3,0.1252]
[1760085887263,0.0012,4335.5,4335.3,2.43184242]
[1760085887813,0.0012,4335.5,4335.4,0.01418938]
[1760085888105,0.0012,4335.5,4335.4,2.32078162]
[1760085888451,0.0012,4335.5,4335.4,2.68178162]
[1760085889270,0.0012,4335.5,4335.4,2.32078162]
[1760085889971,0.0012,4335.5,4335.4,0.01418938]
[1760085891608,0.0012,4335.5,4335.4,7.45327154]
[1760085891771,0.0012,4335.5,4335.4,9.72008216]
[1760085892101,0.0012,4335.5,4335.4,10.17468216]
[1760085893483,0.0012,4335.5,4335.4,17.32847119]
[1760085897089,0.0012,4335.5,4335.4,5.28679533]
[1760085897894,0.0012,4335.5,4335.4,4.83219533]
[1760085898694,1e-08,4336.0,4335.9,2.93992625]
[1760085898894,1e-08,4336.0,4335.9,5.38455924]
[1760085899393,1e-08,4336.0,4335.9,5.74555924]
[1760085899692,1e-08,4336.4,4336.3,2.3061135]
[1760085899911,1e-08,4336.4,4336.3,14.36196627]
[1760085900074,1e-08,4336.4,4336.3,16.62878936]
[1760085900270,1e-08,4336.4,4336.3,18.53573739]
[1760085901768,0.00120001,4336.5,4336.4,4.22606032]
[1760085901998,0.00120001,4336.5,4336.4,4.6012359]
[1760085902784,0.00120001,4336.5,4336.4,5.2348359]
[1760085903107,0.00120001,4336.5,4336.4,5.22066032]
[1760085903309,0.01,4336.9,4336.4,5.22066032]
[1760085903310,1e-08,4336.9,4336.4,6.75957009]
[1760085903539,1e-08,4336.9,4336.8,3.05464762]
[1760085903719,1e-08,4336.9,4336.8,3.06881788]
[1760085903892,1e-08,4336.9,4336.8,5.34981788]
[1760085904211,1e-08,4336.9,4336.8,5.33564762]
[1760085904380,1e-08,4336.9,4336.8,6.09980778]
[1760085905107,1e-08,4336.9,4336.8,5.46620778]
[1760085908330,1e-08,4336.9,4336.8,6.09980778]
[1760085910328,0.01,4337.9,4337.4,2.30552865]
[1760085910533,0.01,4337.9,4337.4,14.4765668]
[1760085910769,0.01,4340.9,4337.5,0.6336]
[1760085911064,0.01,4340.9,4339.3,16.26619502]
[1760085911395,0.01,4340.9,4339.3,16.62719502]
[1760085912398,0.01,4340.9,4339.3,4.58551916]
[1760085912594,0.4373,4340.7,4339.3,5.27453095]
[1760085912801,0.01,4340.9,4339.3,5.27453095]
[1760085914528,0.012,4339.9,4339.3,5.27453095]
[1760085920740,0.012,4339.9,4339.3,5.38973095]
[1760085921549,0.012,4339.9,4339.3,18.15227178]
[1760085923655,0.0012,4339.4,4339.3,18.15227178]
[1760085929181,0.0012,4339.4,4339.3,5.38973095]
[1760085929373,0.0012,4339.4,4339.3,4.70071916]
[1760085935850,0.012,4339.9,4339.3,5.33431916]
[1760085936055,0.012,4339.9,4339.8,16.98679448]
[1760085936294,0.012,4339.9,4339.8,17.10199448]
[1760085936453,0.012,4339.9,4339.8,19.40362686]
[1760085943487,0.012,4339.9,4339.8,10.78463986]
[1760085945860,0.0112,4339.9,4339.8,10.78463986]
[1760085946609,0.0112,4339.9,4339.8,10.42363986]
[1760085946762,0.0112,4339.9,4339.8,10.78463986]
[1760085955897,0.0112,4339.9,4339.8,10.42363986]
[1760085956078,0.0112,4339.9,4339.8,8.84400748]
[1760085960612,0.002,4340.3,4340.2,2.30404128]
[1760085960910,0.002,4340.3,4340.2,6.57612021]
[1760085961081,0.002,4340.3,4340.2,6.92299511]
[1760085961778,0.002,4340.3,4340.2,12.98654894]
[1760085961983,0.002,4340.3,4340.2,14.71776565]
[1760085962187,0.002,4340.4,4340.3,4.2239882]
[1760085962387,0.002,4340.4,4340.3,4.59911198]
[1760085963019,0.002,4340.4,4340.3,4.5849882]
[1760085963220,0.002,4340.4,4340.3,4.59911198]
[1760085963383,0.002,4340.4,4340.3,6.31284974]
[1760085963582,0.002,4340.4,4340.3,6.29872596]
[1760085965301,0.002,4340.4,4340.3,10.44227979]
[1760085966106,0.002,4340.4,4340.3,14.58583362]
[1760085966502,0.002,4340.4,4340.3,10.44227979]
[1760085966732,0.002,4340.4,4340.3,14.58583362]
[1760085967597,0.002,4340.4,4340.3,10.44227979]
[1760085967795,0.0012,4340.4,4340.3,10.44227979]
[1760085970819,0.0012,4340.4,4340.3,4.2239882]
[1760085971519,0.0012,4340.4,4340.3,4.5849882]
[1760085972609,0.0012,4340.4,4340.3,4.2239882]
[1760085973633,0.0012,4340.4,4340.3,4.23811198]
[1760085974149,0.0012,4340.4,4340.3,4.59911198]
[1760085976662,0.0012,4340.4,4340.3,4.23811198]
[1760085976959,0.0012,4340.4,4340.3,2.3039882]
[1760085977135,0.0012,4340.4,4340.2,0.1144]
[1760085977320,0.0012,4340.4,4340.2,2.41843269]
[1760085977518,0.0012,4340.4,4340.3,2.3039882]
[1760085977757,0.0012,4340.4,4340.3,4.15767761]
[1760085977963,0.0012,4340.4,4340.3,6.82266581]
[1760085978159,0.0012,4340.4,4340.3,6.80854203]
[1760085978358,0.0012,4340.4,4340.3,6.44754203]
[1760085979726,0.0012,4340.4,4340.3,6.80854203]
[1760085980760,0.0012,4340.4,4340.2,0.1144]
[1760085981143,0.4353,4340.3,4339.9,0.1152]
[1760085981344,0.4353,4340.2,4339.9,0.1152]
[1760085981524,0.1156,4340.4,4340.0,0.01412776]
[1760085981726,0.1156,4340.4,4339.8,0.001]
[1760085981929,0.5509,4340.4,4339.8,0.001]
[1760085982358,0.5509,4340.4,4339.8,2.30524713]
[1760085982560,0.5509,4340.4,4339.8,0.001]
[1760085982561,0.46409985,4340.3,4339.8,0.001]
[1760085982731,0.1152,4340.0,4339.8,0.001]
[1760085982928,0.2244,4339.9,4339.8,0.001]
[1760085983140,0.6727,4339.9,4339.8,0.001]
[1760085983536,0.4771025,4339.9,4339.8,0.001]
[1760085983741,0.4483,4339.9,4339.8,0.001]
[1760085984155,0.6727,4339.9,4339.8,0.001]
[1760085984978,2.97690055,4339.9,4339.8,0.001]
[1760085985328,0.6727,4339.9,4339.8,0.001]
[1760085986154,0.4495,4340.4,4339.8,0.001]
[1760085986382,0.4495,4340.4,4339.9,2.30420055]
[1760085986566,0.4483,4340.3,4340.0,2.30413314]
[1760085986870,0.0012,4340.4,4340.0,2.30410161]
[1760085987068,0.0012,4340.4,4340.1,2.30407869]
[1760085987255,0.0012,4340.4,4340.2,0.0141251]
[1760085987587,0.0012,4340.4,4340.0,2.31825492]
[1760085987761,0.0012,4340.4,4340.3,2.3039882]
[1760085988576,0.0012,4340.4,4340.3,2.31811198]
[1760085988786,0.0012,4340.4,4340.3,2.94817675]
[1760085989502,0.0012,4340.4,4340.3,3.30917675]
[1760085990080,0.0004,4340.4,4340.3,3.30917675]
[1760085992606,0.0004,4340.4,4340.3,5.22917675]
[1760085992769,0.0004,4340.4,4340.3,5.21505297]
[1760085992958,0.0004,4340.4,4340.3,4.85405297]
[1760085993166,0.0004,4340.4,4340.3,1.92]
[1760085993364,0.0004,4340.4,4340.1,2.3040862]
[1760085994223,0.0004,4340.4,4340.2,2.30402381]
[1760085994717,0.0004,4340.4,4340.1,2.30409437]
[1760085994921,0.0004,4340.4,4340.3,2.3039882]
[1760085995091,0.0004,4340.4,4340.3,3.05987184]
[1760085995294,0.0004,4340.4,4340.3,3.42087184]
[1760085995782,0.0004,4340.4,4340.3,5.34087184]
[1760085996295,0.0004,4340.4,4340.3,5.45527184]
[1760085996708,0.0004,4340.4,4340.3,5.34087184]
[1760086000111,0.0004,4340.4,4340.3,4.97987184]
[1760086000703,0.0004,4340.4,4340.3,5.34087184]
[1760086001280,0.0004,4340.4,4340.3,4.97987184]
[1760086001587,0.0004,4340.4,4340.2,2.30404012]
[1760086001784,0.0004,4340.4,4340.1,2.3040484]
[1760086002112,0.0004,4340.4,4340.1,2.30408287]
[1760086002329,0.0004,4340.4,4340.1,2.3040485]
[1760086002485,0.0004,4340.4,4340.1,2.30408358]
[1760086003200,0.4511,4340.4,4340.1,2.30408358]
[1760086003386,0.4507,4340.3,4339.8,0.001]
[1760086003588,0.4507,4340.3,4339.8,2.30524366]
[1760086003895,0.4507,4340.2,4339.8,2.30524366]
[1760086004212,0.4507,4340.2,4339.9,2.30418606]
[1760086004417,0.4507,4340.2,4339.8,2.30524231]
[1760086004621,0.0004,4340.4,4339.8,0.001]
[1760086004823,0.4507,4340.1,4340.0,2.30414746]
[1760086005021,0.0004,4340.4,4340.0,2.30414746]
[1760086005202,0.4507,4340.3,4340.0,2.30414746]
[1760086005925,0.0004,4340.4,4340.1,0.01412643]
[1760086006435,0.0004,4340.4,4339.8,0.001]
[1760086006436,0.4507,4340.3,4339.8,2.30524989]
[1760086006605,0.4507,4340.2,4339.9,2.30419328]
[1760086006801,0.4507,4340.2,4340.0,2.30411847]
[1760086007644,0.1152,4340.3,4340.0,2.30411847]
[1760086007816,0.0004,4340.4,4339.8,1.921]
[1760086007817,0.4456,4340.2,4339.8,0.001]
[1760086008019,0.4456,4340.1,4339.8,0.001]
[1760086008191,0.0004,4340.4,4339.8,2.30523774]
[1760086008386,0.0004,4340.4,4339.9,2.31832807]
[1760086009141,0.0004,4340.4,4339.9,2.31832154]
[1760086009643,0.4456,4340.3,4339.9,0.01412758]
[1760086010057,0.4456,4340.3,4339.9,2.31832795]
[1760086010258,0.0004,4340.4,4340.0,2.30413308]
[1760086010418,0.0004,4340.4,4340.1,0.01412593]
[1760086011049,0.0004,4340.4,4340.1,2.31819918]
[1760086012016,0.4452,4340.7,4340.1,0.01412593]
[1760086012342,0.02879786,4340.6,4340.1,0.01412593]
[1760086012937,2.33262755,4340.6,4339.8,2.3052116]
[1760086013339,0.02879786,4340.6,4339.8,0.001]
[1760086013533,2.30398029,4340.4,4339.8,0.001]
[1760086013735,0.02879985,4340.3,4339.8,0.001]
[1760086014146,0.4456,4340.2,4339.8,0.001]
[1760086014548,0.02879985,4340.3,4339.8,0.001]
[1760086014750,0.02879985,4340.3,4339.8,0.01512841]
[1760086014948,0.4456,4340.5,4339.8,2.31937354]
[1760086015755,2.7494907,4340.5,4339.8,2.31937354]
[1760086016065,2.7494907,4340.5,4339.8,0.01512841]
[1760086016664,2.30394995,4340.4,4339.8,0.01512841]
[1760086016960,2.30407053,4340.2,4339.8,0.001]
[1760086017466,0.4566,4340.1,4339.8,0.001]
[1760086017830,0.1152,4340.0,4339.8,0.001]
[1760086018056,0.1152,4340.0,4339.8,2.30524561]
[1760086018244,0.1152,4340.0,4339.9,0.01412959]
[1760086019133,0.1152,4340.0,4339.8,0.01512959]
[1760086019969,0.1152,4340.0,4339.8,0.001]
[1760086021074,0.5718,4340.0,4339.8,0.001]
[1760086021376,0.4566,4339.9,4339.8,0.001]
[1760086021579,0.1152,4340.0,4339.8,0.001]
[1760086021749,0.6916,4339.9,4339.8,0.001]
[1760086021953,0.60060184,4340.0,4339.8,0.001]
[1760086022447,0.14400184,4340.0,4339.8,0.001]
[1760086022647,0.4566,4339.9,4339.8,0.001]
[1760086024366,0.6916,4339.9,4339.8,0.001]
[1760086025068,0.7204025,4339.9,4339.8,0.001]
[1760086025257,0.6916,4339.9,4339.8,0.001]
[1760086025456,0.4566,4339.9,4339.8,0.001]
[1760086026562,2.99580055,4339.9,4339.8,0.001]
[1760086026897,0.1152,4340.0,4339.8,0.001]
[1760086027585,0.1152,4340.3,4339.9,2.30420055]
[1760086027786,0.1152,4340.3,4340.0,2.31825909]
[1760086027988,0.1152,4340.3,4340.1,2.30409368]
[1760086028193,0.1152,4340.3,4340.2,2.31816688]
[1760086028378,0.1152,4340.3,4340.2,0.0141256]
[1760086028567,0.1152,4340.3,4339.8,0.001]
[1760086028765,0.1152,4340.3,4340.0,2.30412875]
[1760086029197,0.1152,4340.3,4339.8,0.001]
[1760086029367,0.1152,4340.3,4340.1,2.30409398]
[1760086029564,0.1152,4340.3,4340.2,0.0141256]
[1760086029890,0.1152,4340.3,4339.9,2.31830331]
[1760086030096,0.1152,4340.3,4339.9,2.30417771]
[1760086030866,0.1152,4340.3,4339.8,2.30524688]
[1760086031365,0.5718,4340.3,4339.8,2.30524688]
[1760086031564,0.5718,4340.3,4339.9,2.30418032]
[1760086031895,0.1152,4340.3,4340.0,2.30412485]
[1760086032485,0.1152,4340.3,4339.8,0.001]
[1760086032678,0.1152,4340.3,4340.2,2.30404128]
[1760086033095,0.002,4340.7,4340.3,2.3039464]
[1760086033305,0.1144,4340.5,4340.4,0.01412195]
[1760086034102,0.1136,4340.5,4340.1,2.30406742]
[1760086034316,0.1136,4340.5,4340.2,0.01412558]
[1760086034502,0.1136,4340.5,4340.1,2.77792574]
[1760086035772,0.1136,4340.5,4340.2,0.0141246]
[1760086035978,0.1136,4340.5,4340.3,2.30394566]
[1760086036274,0.1136,4340.5,4340.4,0.01412295]
[1760086037915,0.1136,4340.5,4340.4,2.31805807]
[1760086039136,0.002,4340.7,4340.4,0.85975413]
[1760086039282,0.002,4340.7,4340.6,2.30382896]
[1760086039778,0.002,4340.7,4340.6,4.59934876]
[1760086043596,0.002,4340.7,4340.6,8.74165589]
[1760086043884,0.002,4340.7,4340.6,8.72753609]
[1760086049118,0.002,4340.7,4340.6,12.86984322]
[1760086049319,0.002,4340.7,4340.6,14.39865575]
[1760086049623,0.002,4340.7,4340.6,10.25634862]
[1760086056151,0.0012,4340.7,4340.6,10.25634862]
[1760086066659,0.0012,4340.7,4340.6,14.39865575]
[1760086066987,0.0012,4340.7,4340.6,10.25634862]
[1760086072288,0.0012,4340.7,4340.6,4.22382896]
[1760086073487,0.0012,4340.7,4340.6,4.59934876]
[1760086074964,0.0012,4340.7,4340.6,4.23794876]
[1760086075802,0.0012,4340.7,4340.6,4.22482896]
[1760086076500,0.0012,4340.7,4340.6,2.30482896]
[1760086078162,0.0004,4340.7,4340.6,2.30482896]
[1760086079494,0.0004,4340.7,4340.6,0.001]
[1760086079495,0.4687,4340.7,4340.6,0.001]
[1760086080012,0.0004,4340.7,4340.6,2.30482896]
[1760086080512,0.0004,4340.7,4340.6,2.31894876]
[1760086083463,0.0004,4340.7,4340.6,2.30482896]
[1760086085896,0.0004,4340.7,4340.6,2.31894876]
[1760086086096,0.0004,4340.7,4340.6,2.68034876]
[1760086087599,0.0004,4340.7,4340.6,3.79654587]
[1760086088016,0.0004,4340.7,4340.6,3.78242607]
[1760086088562,0.0004,4340.7,4340.6,2.30482896]
[1760086092517,0.0004,4340.7,4340.6,2.68034876]
[1760086095959,0.0004,4340.7,4340.6,2.66622896]
[1760086096140,0.0004,4340.7,4340.6,4.60034876]
[1760086097742,0.0004,4340.7,4340.6,4.71474876]
[1760086097945,0.0004,4340.7,4340.6,5.82605537]
[1760086098351,0.0004,4340.7,4340.6,5.91835599]
[1760086101266,0.0004,4340.7,4340.6,4.33922896]
[1760086102031,0.0004,4340.7,4340.6,4.35334876]
[1760086102443,0.0004,4340.7,4340.6,4.71474876]
[1760086102648,0.0016,4340.8,4340.7,4.22377588]
[1760086102866,0.0016,4340.8,4340.7,4.59929435]
[1760086103066,0.0016,4340.8,4340.7,4.23789435]
[1760086103854,0.0016,4340.8,4340.7,2.31789435]
[1760086105103,0.0016,4340.8,4340.7,4.69759311]
[1760086105392,0.0016,4340.8,4340.7,5.17339311]
[1760086107954,0.0016,4340.8,4340.7,4.81199311]
[1760086108189,0.0016,4340.8,4340.6,0.001]
[1760086108491,0.4536,4340.7,4340.6,0.001]
[1760086109484,0.0016,4340.8,4340.6,0.001]
[1760086109663,0.4552,4340.8,4340.6,0.001]
[1760086110174,0.0016,4340.8,4340.6,0.001]
[1760086110390,0.4536,4340.7,4340.6,0.001]
[1760086111217,0.0016,4340.8,4340.6,0.001]
[1760086111376,0.0016,4340.8,4340.7,2.30377588]
[1760086114809,0.4552,4340.8,4340.6,2.30482233]
[1760086115010,0.0016,4340.8,4340.6,2.30482233]
[1760086115189,0.4536,4340.7,4340.6,2.30482233]
[1760086115508,0.0016,4340.8,4340.7,2.30377588]
[1760086117778,0.0016,4340.8,4340.6,2.31894213]
[1760086117779,0.0016,4340.8,4340.6,0.0151198]
[1760086118016,0.4552,4340.8,4340.6,0.01511929]
[1760086118181,0.0016,4340.8,4340.7,2.30377588]
[1760086121204,0.0016,4340.8,4340.7,2.66517588]
[1760086121404,0.0016,4340.8,4340.7,3.66271974]
[1760086122248,0.0016,4340.8,4340.7,3.30131974]
[1760086122549,0.0008,4340.8,4340.7,2.30377588]
[1760086128347,0.0008,4340.8,4340.6,0.001]
[1760086129056,0.4687,4340.7,4340.6,0.001]
[1760086129623,0.0008,4340.8,4340.6,0.0151198]
[1760086129955,0.0008,4340.8,4340.7,2.30377588]
[1760086130257,0.0008,4340.8,4340.6,0.0151198]
[1760086130760,0.4687,4340.7,4340.6,0.001]
[1760086131945,0.0008,4340.8,4340.6,0.001]
[1760086132145,0.4687,4340.7,4340.6,0.001]
[1760086137030,2.77247588,4340.7,4340.6,0.001]
[1760086137564,3.27025794,4340.7,4340.6,0.001]
[1760086137768,3.27024493,4340.7,4340.6,0.001]
[1760086138268,2.77247588,4340.7,4340.6,0.001]
[1760086138428,2.80127307,4340.7,4340.6,0.001]
[1760086138631,0.49499719,4340.7,4340.6,0.001]
[1760086138831,0.02879719,4340.7,4340.6,0.001]
[1760086139132,2.79877307,4340.7,4340.6,0.001]
[1760086140868,0.4662,4340.7,4340.6,0.001]
[1760086142213,0.0008,4340.8,4340.6,0.001]
[1760086142371,0.1144,4340.7,4340.6,0.001]
[1760086143804,0.5806,4340.7,4340.6,0.001]
[1760086144179,2.88437588,4340.7,4340.6,0.001]
[1760086144594,2.88357588,4340.7,4340.6,0.001]
[1760086148410,7.75944047,4340.7,4340.6,0.001]
[1760086148718,10.31304047,4340.7,4340.6,0.001]
[1760086151375,10.80946243,4340.7,4340.6,0.001]
[1760086152246,11.42730471,4340.7,4340.6,0.001]
[1760086152528,10.80946243,4340.7,4340.6,0.001]
[1760086153528,10.80946243,4340.7,4340.0,0.001]
[1760086153529,0.6336,4340.5,4340.0,1e-08]
[1760086153693,9.73355896,4340.1,4340.0,1e-08]
[1760086153899,10.22998092,4340.1,4340.0,1e-08]
[1760086154112,10.69618092,4340.1,4340.0,1e-08]
[1760086154313,10.78855551,4340.1,4340.0,1e-08]
[1760086155413,11.24322791,4340.1,4340.0,1e-08]
[1760086163655,10.51601786,4340.1,4340.0,1e-08]
[1760086165234,10.51801786,4340.1,4340.0,1e-08]
[1760086166658,10.51721786,4340.1,4340.0,1e-08]
[1760086167064,9.88361786,4340.1,4340.0,1e-08]
[1760086167554,10.51721786,4340.1,4340.0,1e-08]
[1760086170485,9.88361786,4340.1,4340.0,1e-08]
[1760086171429,6.36856332,4340.1,4340.0,1e-08]
[1760086171643,10.0207959,4340.1,4340.0,1e-08]
[1760086171841,10.51616543,4340.1,4340.0,1e-08]
[1760086175355,11.1362508,4340.1,4340.0,1e-08]
[1760086176368,10.51616543,4340.1,4340.0,1e-08]
[1760086179476,11.34431633,4340.1,4340.0,1e-08]
[1760086179873,1.04864412,4340.1,4340.0,1e-08]
[1760086180074,0.58207576,4340.1,4340.0,1e-08]
[1760086180392,10.05715008,4340.1,4340.0,1e-08]
[1760086180581,10.43134385,4340.1,4340.0,1e-08]
[1760086181500,11.05345566,4340.1,4340.0,1e-08]
[1760086181833,11.14582406,4340.1,4340.0,1e-08]
[1760086182717,11.14591404,4340.1,4340.0,1e-08]
[1760086182928,0.62218729,4340.5,4340.2,2.30401135]
[1760086183252,1.70527459,4341.0,4340.0,4.22414277]
[1760086183253,0.1144,4340.6,4340.4,6.45257539]
[1760086183419,0.1144,4340.6,4340.5,2.30388204]
[1760086183604,0.002,4341.0,4340.7,2.30377588]
[1760086183808,0.1264,4340.9,4340.7,2.30377588]
[1760086187334,0.4395,4340.6,4340.5,2.72539357]
[1760086188701,0.4387,4340.6,4340.5,2.72539357]
[1760086190953,0.4387,4340.6,4340.5,0.42151335]
[1760086191253,0.4387,4340.6,4340.5,0.1144]
[1760086191620,0.4387,4340.6,4340.5,2.41828204]
[1760086191953,0.0008,4340.8,4340.7,2.30377588]
[1760086192251,0.0008,4340.8,4340.5,0.1144]
[1760086192548,0.0008,4340.8,4340.6,2.30377806]
[1760086192766,0.0008,4340.8,4340.7,2.67827349]
[1760086193460,0.0008,4340.8,4340.7,2.80467349]
[1760086197693,0.4418,4340.8,4340.7,0.50089761]
[1760086197850,0.4418,4340.8,4340.7,0.1264]
[1760086198590,0.4418,4340.8,4340.7,2.43017588]
[1760086198753,0.4418,4340.8,4340.7,2.30377588]
[1760086200633,0.002,4341.2,4340.8,0.46076566]
[1760086200634,0.0012,4341.2,4340.8,0.46076566]
[1760086200898,0.0012,4341.2,4341.1,2.30356361]
[1760086201103,0.0012,4341.2,4341.1,4.23767677]
[1760086201396,0.0012,4341.2,4341.1,4.59987677]
[1760086201598,1e-08,4341.3,4341.2,4.85711055]
[1760086201753,1e-08,4341.3,4341.2,6.52670199]
[1760086203971,1e-08,4341.3,4341.2,6.16359797]
[1760086207883,1e-08,4341.9,4341.8,2.30319222]
[1760086208117,1e-08,4341.9,4341.8,17.00121704]
[1760086208426,1e-08,4341.9,4341.8,15.42931316]
[1760086208607,0.002,4342.1,4342.0,2.30308613]
[1760086208813,0.441,4344.3,4342.8,2.30266187]
[1760086208983,0.441,4344.3,4342.8,2.31675249]
[1760086209391,0.441,4344.3,4342.8,2.67895249]
[1760086209578,0.441,4344.3,4342.8,3.11995249]
[1760086209811,0.441,4344.3,4342.8,4.95120371]
[1760086210017,0.441,4344.3,4342.8,4.93711309]
[1760086210698,0.0092,4342.9,4342.8,5.05151309]
[1760086211598,0.0092,4342.9,4342.8,4.68931309]
[1760086211822,0.0092,4342.9,4342.8,2.41706187]
[1760086212385,0.0092,4342.9,4342.8,2.77926187]
[1760086214624,0.0092,4342.9,4342.8,2.79335249]
[1760086216430,0.0092,4342.9,4342.8,3.15635656]
[1760086216801,1e-08,4342.9,4342.8,3.15635656]
[1760086217003,1e-08,4342.9,4342.8,3.78405282]
[1760086218749,0.0084,4343.9,4342.8,3.78405282]
[1760086218750,0.0084,4343.9,4343.8,2.30213177]
[1760086219027,0.0084,4343.9,4343.8,2.31620914]
[1760086219233,0.0084,4343.9,4343.8,2.66433177]
[1760086219460,0.0084,4343.9,4343.8,2.90720914]
[1760086219622,0.0084,4343.9,4343.8,4.70454292]
[1760086219821,0.0084,4343.9,4343.8,4.69046555]
[1760086221123,0.0084,4343.9,4343.8,2.89313177]
[1760086221764,0.0084,4343.9,4343.8,3.15581321]
[1760086222457,0.13,4345.7,4343.9,0.36300406]
[1760086222666,0.13,4344.8,4344.7,2.30165488]
[1760086222825,0.13,4344.8,4344.7,2.66385488]
[1760086223175,0.13,4344.8,4344.7,2.94369037]
[1760086223340,0.13,4344.8,4344.7,2.95775581]
[1760086229479,0.13,4344.8,4344.7,3.08775581]
[1760086230384,0.13,4344.8,4344.7,3.45075988]
[1760086230954,0.01,4345.9,4344.8,2.30160191]
[1760086231184,1e-08,4344.9,4344.8,3.4826614]
[1760086231390,1e-08,4344.9,4344.8,3.84566547]
[1760086231681,1e-08,4344.9,4344.8,3.96006547]
[1760086233183,0.00920001,4345.9,4345.8,2.30107229]
[1760086233577,0.00920001,4345.9,4345.8,2.67732317]
[1760086233749,0.00920001,4345.9,4345.8,3.17517055]
[1760086233955,0.00920001,4345.9,4345.8,2.79891967]
[1760086234355,0.00920001,4345.9,4345.8,3.16111967]
[1760086235729,0.00920001,4345.9,4345.8,0.49784738]
[1760086235944,0.00920001,4345.9,4345.6,2.30112788]
[1760086236239,0.00920001,4345.9,4345.2,1.05373344]
[1760086236390,0.00920001,4345.9,4345.2,0.69153344]
[1760086236585,0.00920001,4345.9,4345.6,2.30114542]
[1760086236920,0.00920001,4345.9,4345.3,2.66353707]
[1760086236921,0.00920001,4345.9,4345.4,2.30128411]
[1760086237122,0.00920001,4345.9,4345.5,2.63668324]
[1760086237310,0.00920001,4345.9,4345.7,2.30107883]
[1760086237684,0.00920001,4345.9,4345.5,2.63668324]
[1760086238023,0.00920001,4345.9,4345.6,2.3011782]
[1760086238186,0.00920001,4345.9,4345.5,0.33550176]
[1760086238525,0.00920001,4345.9,4345.8,2.30107229]
[1760086239505,0.00920001,4345.9,4345.8,2.67732317]
[1760086243209,0.00920001,4345.9,4345.8,2.79172317]
[1760086243612,0.00920001,4345.9,4345.8,2.41547229]
[1760086245157,0.00920001,4345.9,4345.8,0.1144]
[1760086246320,0.00920001,4345.9,4345.5,2.30122702]
[1760086246321,0.44890001,4345.9,4345.5,2.30117963]
[1760086246648,0.00920001,4345.9,4345.6,2.30116422]
[1760086246959,0.00920001,4345.9,4345.5,2.4156094]
[1760086247327,0.00920001,4345.9,4345.6,2.30117012]
[1760086248454,0.00920001,4345.9,4345.5,0.1144]
[1760086248655,0.68,4345.8,4345.1,2.30139485]
[1760086248858,0.4561,4345.7,4345.1,2.30139485]
[1760086249067,0.4561,4345.7,4345.2,2.30138884]
[1760086249364,0.2239,4345.8,4344.6,1.18833069]
[1760086249365,0.03796275,4345.9,4345.3,2.30133227]
[1760086249573,0.03796275,4345.9,4345.4,2.30128072]
[1760086249781,0.03796275,4345.9,4345.3,2.30132808]
[1760086250366,0.03796275,4345.9,4344.8,4.86517022]
[1760086250568,0.00920001,4345.9,4345.6,2.30116359]
[1760086250955,0.00920001,4345.9,4345.5,2.30122888]
[1760086251380,0.00920001,4345.9,4345.2,2.31543747]
[1760086251584,0.00920001,4345.9,4345.2,0.01405367]
[1760086251879,0.00920001,4345.9,4345.4,2.30128248]
[1760086252041,0.00920001,4345.9,4345.0,0.3622]
[1760086252243,0.4561,4345.8,4345.2,2.30136329]
[1760086252478,0.00920001,4345.9,4345.3,0.014056]
[1760086252684,0.00920001,4345.9,4345.4,2.30123804]
[1760086252858,0.4561,4345.8,4345.1,2.30140056]
[1760086253182,0.4561,4345.8,4345.3,2.30133238]
[1760086254352,0.00920001,4345.9,4344.9,0.79929256]
[1760086254353,0.00920001,4345.9,4345.2,2.3013783]
[1760086254559,0.46530001,4345.9,4345.2,2.30137963]
[1760086254757,0.0287634,4345.8,4345.2,2.30135333]
[1760086254973,0.0279634,4345.8,4345.3,2.30133008]
[1760086255375,0.4840634,4345.8,4345.3,2.30133008]
[1760086255575,0.4840634,4345.8,4345.4,2.30123966]
[1760086256350,0.4840634,4345.8,4345.2,2.30134252]
[1760086256546,0.00920001,4345.9,4345.5,4.86517022]
[1760086256747,0.00920001,4345.9,4345.6,0.37785712]
[1760086256952,0.00920001,4345.9,4345.8,2.30107229]
[1760086258884,0.00920001,4345.9,4345.8,2.66327229]
[1760086259653,0.00920001,4345.9,4345.8,2.67812318]
[1760086259866,0.00920001,4345.9,4345.8,3.67401004]
[1760086260968,0.00920001,4345.9,4345.8,3.65915915]
[1760086262673,0.00920001,4345.9,4345.8,3.67401004]
[1760086263581,0.00920001,4345.9,4345.8,4.03701411]
[1760086263786,0.00920001,4345.9,4345.8,4.15141411]
[1760086264182,0.00920001,4345.9,4345.8,8.63872937]